{"text_format":"3","workbook":"xlsx","n_sheets":2,"sheets":["Costo horario","Norma"],"not_rendered":{"images":7,"macros":1},"read":"whole","date_system":"1900"}

{"sheet":"Costo horario","index":0,"n_rows":211,"n_cols":11,"rows_kept":211,"merged":[[0,0,4,10],[25,0,27,5]]}
["CALCULO DEL COSTO HORARIO TOTAL DE CARGADOR SOBRE ORUGAS D6M-XL"]
{"$rows_empty":24}
["               TRACTOR ORGUAS D6M-XL"]
[]
[]
[]
[]
[]
["1.- DATOS GENERALES DE LA MAQUINA"]
[]
["Valor de Adquisición (Va)                       =",null,null,{"v":726712,"d":"S/. 726,712.00"},"(Sin I.G.V)"]
["Vida Economica Útil (VEU)                     =",null,null,"n=",5,"años,",2000,"horas semanales    =",null,{"$f":"+G35*E35","v":{"v":10000,"d":"10,000"}},"horas"]
["Valor de Rescate (Vr)                               =",null,null,25,"del        Va =",{"$f":"+D36/100*D34","v":{"v":181678,"d":"S/. 181,678.00"}}]
["Potencia                                                         =",null,null,200,"HP"]
["Capacidad                                                      =",{"$nulls":3},"kg"]
["Capacidad de cucharon                            =",null,null,15,"m3"]
[]
["2.- CALCULO DEL COSTO HORARIO DE POSESIÓN (DEPRECIACION + INTERES DE CAPITAL INVERTIDO + IMPUESTOS, SEGUROS Y ALMACENAJE)"]
[]
["*","Costo horario de la Depreciación"]
[]
[null,"Depreciación                                                   =       ",{"$nulls":4},{"$f":"+D34-F36","v":{"v":545034,"d":"S/. 545,034.00"}}]
[{"$nulls":6},{"$f":"+E35","v":5}]
[]
[null,"Depreciación                                                   =       ",{"$nulls":3},{"$f":"+G45/G46","v":{"v":109006.8,"d":"S/. 109,006.80"}},"/ año"]
[null,"Depreciación                                                   =       ",{"$nulls":3},{"$f":"+F48","v":{"v":109006.8,"d":"S/. 109,006.80"}},2000,"horas"]
[null,"Depreciación                                                   =       ",{"$nulls":3},{"$f":"+F49/G49","v":54.5034},"/ hora"]
[]
["*","Costo horario del Interés de Capital Invertido"]
[]
[null,"Interés del Capital Invertido                    ="]
[]
[]
[null,"Cálculo de la Inversion Media Anual (IMA)"]
[]
[null,"Cálculo de la Inversion Media Anual (IMA)                =",{"$nulls":5},{"$f":"+(D34*(E35+1)+F36*(E35-1))/(2*E35)","v":{"v":508698.4,"d":"S/. 508,698.40"}},"/ año"]
[]
[]
[null,"Interés de Capital Invertido                     =",{"$nulls":3},"=",{"$f":"+H59","v":{"v":508698.4,"d":"S/. 508,698.40"}},"/ año x 0.2285"]
[{"$nulls":6},2000,"horas"]
[]
[]
[null,"Interés de Capital Invertido                     =",{"$nulls":3},"=",{"$f":"+G62*0.2285/G49","v":{"v":58.1187922,"d":"S/. 58.12"}},"/ hora"]
[]
[]
["*","Costo horario de los Seguros, Impuestos y Almacenaje"]
[]
[{"$nulls":3},"Seguros                                     :",null,{"v":0.025,"d":"2.5%"}]
[{"$nulls":3},"Impuestos                                :",null,{"v":0.02,"d":"2.0%"}]
[{"$nulls":3},"Almacenaje                             :",null,{"v":0.01,"d":"1.0%"}]
[{"$nulls":3},"TOTAL                                        :",null,{"$f":"+F71+F72+F73","v":{"v":0.055,"d":"5.5%"}}]
[]
[null,"La sumatoria de las tasas promedio las aplicaremos sobre la Inversino Media Anual"]
[]
[null,"Seguros, Impuestos         =",{"$nulls":3},"=",{"$f":"+G62","v":{"v":508698.4,"d":"S/. 508,698.40"}},"/ años x 5.5%"]
[null,"y Almacenaje",{"$nulls":4},2000,"horas"]
[]
[]
[null,"Seguros, Impuestos         =",null,{"$f":"+(G78*F74)/G35","v":{"v":13.989206,"d":"S/. 13.99"}},"/ hora"]
[null,"y Almacenaje"]
[]
[]
[null,"Depreciación                                                   =",null,null,{"$f":"+F50","v":{"v":54.5034,"d":"S/. 54.50"}},{"$f":"+H66","v":"/ hora"}]
[null,"Intereses                                                           =",null,null,{"$f":"+G66","v":{"v":58.1187922,"d":"S/. 58.12"}},{"$f":"+H66","v":"/ hora"}]
[null,"Seguros, impuestos y almacenaje          =",null,null,{"$f":"+D82","v":{"v":13.989206,"d":"S/. 13.99"}},{"$f":"+H66","v":"/ hora"}]
[null,"Total Costo Horario de Posesión             =",null,null,{"$f":"+E86+E87+E88","v":{"v":126.6113982,"d":"S/. 126.61"}},{"$f":"+F88","v":"/ hora"}]
[]
[]
["*","CALCULO DE COSTO HORARIO DE PRODUCCION (MANTENIMIENTO Y REPARACION +"]
[null,"COMBUSTIBLE + LUBRICANTES + FILTROS + GRASAS + PIEZAS DE DESGASTE +"]
[null,"HERRAMIENTAS DE CORTE + NEUMATICOS + OPERADOR DE EQUIPO ESPECIALIZADO)"]
[]
["Datos generales"]
[]
["Combustibles:"]
["Consumo de Petróleo (para equipo nuevo)                    :",{"$nulls":3},3.5,"gal/hora"]
["Lubricantes "]
["Consumo de Aceite Motor Grado 40                                   :",{"$nulls":3},0.035,{"$f":"+F99","v":"gal/hora"}]
["Consumo de Aceite Caja de cambio grado 140               :",{"$nulls":3},0.00435,{"$f":"+F101","v":"gal/hora"}]
["Consumo de Aceite Toma fuerza, reductor, direccion;     grado 140",{"$nulls":3},0.0026,"gal"]
["Consumo de Aceite Direccion                                               :",{"$nulls":3},1E-3,{"$f":"+F102","v":"gal/hora"}]
["Grasa                                                                                                :",{"$nulls":3},0.22,"lib/hora"]
["Refrigerante",null,null,"                           :",2E-3,{"$f":"+F104","v":"gal/hora"}]
[]
["Filtros:"]
["Filtros",null,null,"                           :",20,"% (combustible + lubricante)"]
[]
["Neumáticos:"]
["Neumáticos:",null,null,"                           :",0,"unidades"]
["Vida Útil de cada unidad ",null,null,"                           :",8000,"horas (condiciones severas)"]
[{"$nulls":3},"                           :"]
["Operador:"]
["Operador de equipo pesado ",null,null,"                           :",1.5]
[]
["*","Cálculo del costo de Mantenimiento y Reparación (C.M.R)"]
[]
[null,"C.M.R =","Costo de Mano de Obra + Costo de Reparaciones"]
[]
[null,"Para determinar ambos costos se calcula previamente el Costo de Mantenimiento:"]
[]
[null,"Costo de mantenimiento                          =  ",null,null,{"v":0.9,"d":"90%"},"del valor de adquisición"]
[{"$nulls":3},"                        =",{"$f":"+E124*D34","v":{"v":654040.8,"d":"S/. 654,040.80"}}]
[]
[null,"a). Costo de Mano de Obra                       =",null,null,{"v":0.25,"d":"25%"},"x "]
[]
[null,"Para determinar ambos costos se calculara previamente el costo de mantenimiento:"]
[]
[null,"Costo de Mantenimiento:",null,null,"=   90% del Valor de Adquisición"]
[{"$nulls":4},{"$f":"90/100*D34","v":{"v":654040.8,"d":"S/. 654,040.80"}}]
[]
[]
[null,"a) Costos de Mano de Obra",null,null,"=   25% x Costo de Mantenimiento/ V.E.U."]
[{"$nulls":4},{"$f":"0.25*E132","v":{"v":163510.2,"d":"S/. 163,510.20"}},{"$f":"+J35","v":{"v":10000,"d":"10,000"}},"horas"]
[{"$nulls":4},{"$f":"+E136/F136","v":{"v":16.351020000000002,"d":"S/. 16.35"}},"hora"]
[]
[null,"b) Costo de Reparaciones: ",null,null,"=   75% x Costo de Mantenimiento/ V.E.U."]
[{"$nulls":4},{"$f":"0.75*E125","v":{"v":490530.60000000003,"d":"S/. 490,530.60"}},{"$f":"+F136","v":{"v":10000,"d":"10,000"}},"horas"]
[{"$nulls":4},{"$f":"+E140/F140","v":{"v":49.05306,"d":"S/. 49.05"}},"hora"]
[]
[null,"costo de mantenimiento y reparación:",null,null,"Costo de Mano de Obra + Costo de Reparaciones "]
[null,"costo de mantenimiento y reparación:",null,null,{"$f":"+E137","v":{"v":16.351020000000002,"d":"S/. 16.35"}},"/hora","    +",{"$f":"+E141","v":{"v":49.05306,"d":"S/. 49.05"}},"/hora"]
[null,"costo de mantenimiento y reparación:",null,null,{"$f":"+H144+E144","v":{"v":65.40408000000001,"d":"65.40"}},"/hora"]
[]
[null,"Cotizaciones "]
[null,"Galón de petróleo ( galón):",{"$nulls":3},"S/=",9.58,"sin I.G.V."]
[null,"Galón de aceite Motor Grado 40 ( galón):",{"$nulls":3},"S/=",31.09,"sin I.G.V."]
[null,"Aceite Caja de cambio; grado 140",{"$nulls":3},"S/=",33.96,"sin I.G.V."]
[null,"Aceite Toma fuerza, reductor, dirección, grado 140:",{"$nulls":3},"S/=",33.96,"sin I.G.V."]
[null,"Aceite Dirección:",{"$nulls":3},"S/=",38.55,"sin I.G.V."]
[null,"Grasas (libra):",{"$nulls":3},"S/=",4.67,"sin I.G.V."]
[null,"Refrigerante (unidad):",{"$nulls":3},"S/=",35.01,"sin I.G.V."]
[null,"Neumaticos( unidad):",{"$nulls":3},"S/=",0,"c/u sin I.G.V"]
[null,"Operarío de Construcción Civil:",{"$nulls":3},"S/=",12.42,"H-H"]
[]
[null,"Cálculo del Costo del Combustible"]
[null,"Combustible ( Petróleo):"]
[null,"Combustible total:",{"$nulls":3},"S/=",{"$f":"+E99*G148","v":33.53},"/hora"]
[]
[null,"Cálculo del costo de los Lubricantes:"]
[null,"Aceite Motor Grado 40 (galón):",{"$nulls":3},"S/=",{"$f":"+E101*G149","v":{"v":1.0881500000000002,"d":"1.09"}},"/hora"]
[null,"Aceite Caja de Cambio; grado 140:",{"$nulls":3},"S/=",{"$f":"+E102*G150","v":{"v":0.147726,"d":"0.15"}},"/hora"]
[null,"Aceite Toma fuerza, reductor, dirección; grado :",{"$nulls":3},"S/=",{"$f":"+E103*G151","v":{"v":0.088296,"d":"0.09"}},"/hora"]
[null,"Aceite Dirección:",{"$nulls":3},"S/=",{"$f":"+E104*G152","v":{"v":0.03855,"d":"0.04"}},"/hora"]
[null,"Refrigerantes:",{"$nulls":3},"S/=",{"$f":"+E106*G154","v":{"v":0.07002,"d":"0.07"}},"/hora"]
[null,"Lubricantes Total:",{"$nulls":3},"S/=",{"$f":"+SUM(G163:G167)","v":{"v":1.4327420000000002,"d":"1.43"}},"/hora"]
[]
[null,"Cálculo del Costo de los Filtros:"]
[null,"Filtros :",{"$nulls":4},{"v":0.2,"d":"20%"},"(combustible +lubricante)"]
[null,"Filtros Total:",{"$nulls":3},"S/=",{"$f":"0.2*(G160+G168)","v":{"v":6.9925484,"d":"6.99"}},"/hora"]
[]
[null,"Cálculo del Costo de las Grasas:"]
[null,"Grasas:",{"$nulls":4}," "]
[null,"GrasasTotal:",{"$nulls":3},"S/=",{"$f":"+E105*G153","v":{"v":1.0274,"d":"1.03"}},"/hora"]
[]
[null,"Cálculo del Costo de las Piezas de Desgaste:",{"$nulls":3},"no tiene"]
[]
[null,"Cálculo del Coste de las Herramientas de Corte:",{"$nulls":3},"no tiene"]
[]
[null,"Cálculo del costo de los Neumaticos:"]
[null,"Neumaticos:",{"$nulls":3},"=","Costo de los neumaticos / vida útil de la llanta"]
[null,"Neumaticos Total:",{"$nulls":3},"S/=",{"$f":"+E112*G155/E113","v":0},"/hora"]
[]
[null,"Cálculo del Costo del Operador Especializado:"]
[null,"Operador Especializado:",{"$nulls":3},"=","1.5 (costo de H-H de ope.de construccion civil)"]
[null,"Operador Especializado:",{"$nulls":3},"S/=",{"$f":"1.5*G156","v":18.63}]
[]
[]
[null,"Mantenimiento y reparación:",null,null,"S/=",{"$f":"+E145","v":{"v":65.40408000000001,"d":"65.40"}},"/hora"]
[null,"Combustible:",null,null,"S/=",{"$f":"+G160","v":33.53},"/hora"]
[null,"Lubricantes:",null,null,"S/=",{"$f":"+G168","v":{"v":1.4327420000000002,"d":"1.43"}},"/hora"]
[null,"Filtros:",null,null,"S/=",{"$f":"+G172","v":{"v":6.9925484,"d":"6.99"}},"/hora"]
[null,"Grasas:",null,null,"S/=",{"$f":"+G176","v":{"v":1.0274,"d":"1.03"}},"/hora"]
[null,"Piezas de desgaste:",null,null,"S/=",0,"/hora"]
[null,"Herramientas de corte:",null,null,"S/=",0,"/hora"]
[null,"Neumaticos:",null,null,"S/=",{"$f":"+G184","v":0},"/hora"]
[null,"Operador de equipo pesado:",null,null,"S/=",{"$f":"+G188","v":18.63},"/hora"]
[null,"TOTAL COSTO HORARIO DE OPERACIÓN:",null,null,"S/=",{"$f":"SUM(F191:F199)","v":{"v":127.01677040000001,"d":"127.02"}},"/hora"]
[]
[null,"CALCULO DEL COSTO HORARIO TOTAL"]
[]
[null,"Costo Horario del tractor D6M-XL con operador.=",{"$nulls":3},"costo de posesión + costo de operación"]
[]
[null,"Costo Horario del Tractor D6M-XL con operador.=",{"$nulls":3},{"$f":"+E89","v":{"v":126.6113982,"d":"S/. 126.61"}}," + ",{"$f":"+F200","v":{"v":127.01677040000001,"d":"S/. 127.02"}}]
[]
[]
[null,"COSTO HORARIO DEL TRACTOR D6M-XL (CON OPERADOR)=",{"$nulls":4},{"$f":"+F206+H206","v":{"v":253.6281686,"d":"S/. 253.63"}},"/hora"]
[]
[null,"Nota: Este costo no incluye el Impuesto General a las Ventas (I.G.V.), gastas generales ni utilidad "]

{"sheet":"Norma","index":1,"n_rows":0,"n_cols":0,"rows_kept":0}